bitfinex/quotes_BTCUSD_20250131
["timestamp","ask_amount","ask_price","bid_price","bid_amount"]
[1738300393501,0.7391867,104380.0,104370.0,0.00030418]
[1738300396211,0.335351,104370.0,104350.0,0.73783959]
[1738300396433,0.8093327,104370.0,104360.0,0.09724316]
[1738300397042,0.8093327,104370.0,104360.0,0.24097616]
[1738300397756,0.6177057,104370.0,104360.0,0.24097616]
[1738300400946,0.6177057,104370.0,104360.0,0.24123236]
[1738300407465,0.6177057,104370.0,104360.0,0.0002562]
[1738300414245,0.4739817,104370.0,104360.0,0.51593236]
[1738300414459,0.4739817,104370.0,104360.0,1.02410464]
[1738300418186,0.4739817,104370.0,104360.0,1.03386912]
[1738300418389,0.4739817,104370.0,104360.0,1.05686912]
[1738300418597,0.48209039,104370.0,104360.0,1.05686912]
[1738300421217,0.4739817,104370.0,104360.0,2.31226114]
[1738300421715,0.4739817,104370.0,104360.0,1.80149029]
[1738300422486,0.4739817,104370.0,104360.0,1.77118012]
[1738300423328,0.4739817,104370.0,104360.0,1.85725515]
[1738300424838,0.4741037,104370.0,104360.0,1.14294415]
[1738300425051,0.4741037,104370.0,104360.0,2.11066015]
[1738300426097,0.4741037,104370.0,104360.0,1.35496915]
[1738300426462,0.4741037,104370.0,104360.0,1.36132915]
[1738300426669,0.4741037,104370.0,104360.0,0.88304323]
[1738300426854,0.4741037,104370.0,104360.0,0.7969682]
[1738300427419,0.4741037,104370.0,104360.0,0.7157742]
[1738300428082,0.4741037,104370.0,104360.0,0.7157342]
[1738300428769,0.4741037,104370.0,104360.0,0.7094142]
[1738300429006,0.48221239,104370.0,104360.0,0.5849432]
[1738300429436,0.4741037,104370.0,104360.0,0.4308832]
[1738300429643,0.4741037,104370.0,104360.0,0.2872432]
[1738300430060,0.4741037,104370.0,104360.0,0.4372432]
[1738300430306,0.4741037,104370.0,104360.0,0.4308832]
[1738300430550,0.6178227,104370.0,104360.0,0.40735684]
[1738300431047,0.71517946,104370.0,104360.0,0.09749936]
[1738300431252,0.6677227,104370.0,104360.0,0.09749936]
[1738300432220,0.6677227,104370.0,104360.0,0.0002562]
[1738300432488,0.7439227,104370.0,104360.0,0.0002562]
[1738300435683,0.4741037,104370.0,104360.0,0.24123236]
[1738300436104,0.6178227,104370.0,104360.0,0.24123236]
[1738300446338,0.6987227,104370.0,104360.0,0.09749936]
[1738300446545,0.6987227,104370.0,104360.0,0.0002562]
[1738300456260,0.6178227,104370.0,104360.0,0.24123236]
[1738300459134,0.6178227,104370.0,104360.0,0.09749936]
[1738300460139,0.6178227,104370.0,104360.0,0.24123236]
[1738300461496,0.6178227,104370.0,104360.0,0.09749936]
[1738300462395,0.79527946,104370.0,104360.0,0.0002562]
[1738300462888,0.6979227,104370.0,104360.0,0.0002562]
[1738300463507,0.6979227,104370.0,104360.0,0.03016441]
[1738300465199,0.6178227,104370.0,104360.0,0.12740757]
[1738300465416,0.6178227,104370.0,104360.0,0.27114057]
[1738300467465,0.6178227,104370.0,104360.0,0.12740757]
[1738300475458,0.4741037,104370.0,104360.0,0.27114057]
[1738300481098,0.4741037,104370.0,104360.0,0.35703092]
[1738300484559,0.4741037,104370.0,104360.0,0.36640323]
[1738300487465,0.4741037,104370.0,104360.0,0.35703092]
[1738300487704,0.6178227,104370.0,104360.0,0.35703092]
[1738300491830,0.6178227,104370.0,104360.0,0.12740757]
[1738300493255,0.6178227,104370.0,104360.0,0.22352757]
[1738300493968,0.6178227,104370.0,104360.0,0.36726057]
[1738300503796,0.4741037,104370.0,104360.0,0.36726057]
[1738300504041,0.4741037,104370.0,104360.0,0.64266057]
[1738300504042,0.48221239,104370.0,104360.0,0.64266057]
[1738300504315,0.4741037,104370.0,104360.0,0.76566057]
[1738300504559,0.48221239,104370.0,104360.0,0.66566057]
[1738300504832,0.48221239,104370.0,104360.0,0.79460257]
[1738300505330,0.4741037,104370.0,104360.0,0.66566057]
[1738300508714,0.4741037,104370.0,104360.0,0.66524057]
[1738300510335,0.4741037,104370.0,104360.0,0.75131864]
[1738300516635,0.4741037,104370.0,104360.0,0.75157463]
[1738300522195,0.4741037,104370.0,104360.0,0.75781463]
[1738300541857,0.4741037,104370.0,104360.0,1.31728463]
[1738300542250,0.4741037,104370.0,104360.0,2.81728463]
[1738300542471,0.4741037,104370.0,104360.0,1.31728463]
[1738300545047,0.4741037,104370.0,104360.0,1.23120656]
[1738300549607,0.4741037,104370.0,104360.0,1.33120656]
[1738300550350,0.4741037,104370.0,104360.0,1.43232656]
[1738300550562,0.4741037,104370.0,104360.0,1.63232656]
[1738300551030,0.4525337,104370.0,104360.0,1.63232656]
[1738300551386,0.4525337,104370.0,104360.0,4.00072656]
[1738300556689,0.4525337,104370.0,104360.0,2.49448656]
[1738300556897,0.4525337,104370.0,104360.0,2.50072656]
[1738300557542,0.4525337,104370.0,104360.0,1.76132656]
[1738300560006,0.4525337,104370.0,104360.0,1.66132656]
[1738300560391,0.4525337,104370.0,104360.0,3.16132656]
[1738300561444,0.4525337,104370.0,104360.0,2.70185656]
[1738300561649,0.4525337,104370.0,104360.0,3.19161356]
[1738300561875,0.4525337,104370.0,104360.0,3.11727656]
[1738300562394,0.4525337,104370.0,104360.0,3.11103656]
[1738300562545,0.4525337,104370.0,104360.0,3.11727656]
[1738300563514,0.4525337,104370.0,104360.0,3.65667656]
[1738300565375,0.4525337,104370.0,104360.0,1.76834656]
[1738300570772,0.4525337,104370.0,104360.0,1.89304656]
[1738300570996,0.26680679,104370.0,104360.0,2.02181525]
[1738300571208,0.26680679,104370.0,104360.0,3.549341]
[1738300571657,0.20931779,104370.0,104360.0,3.549341]
[1738300572090,0.19015479,104370.0,104360.0,3.396851]
[1738300572308,0.02529278,104370.0,104360.0,7.15973325]
[1738300572525,0.02529278,104370.0,104360.0,7.35973325]
[1738300572734,0.02529278,104370.0,104360.0,6.79088625]
[1738300573169,7.8e-07,104370.0,104360.0,6.79088625]
[1738300573419,7.8e-07,104370.0,104360.0,3.56932525]
[1738300573626,7.8e-07,104370.0,104360.0,2.70092525]
[1738300575063,7.8e-07,104370.0,104360.0,1.20092525]
[1738300575589,7.8e-07,104370.0,104360.0,2.67215656]
[1738300577401,0.00714869,104400.0,104390.0,0.273]
[1738300577644,0.00719685,104400.0,104390.0,2.55833508]
[1738300579469,4.816e-05,104400.0,104390.0,2.55833508]
[1738300579953,4.816e-05,104400.0,104390.0,2.36309108]
[1738300580187,4.816e-05,104400.0,104390.0,2.12882708]
[1738300580416,4.816e-05,104400.0,104390.0,2.04977608]
[1738300581070,0.13367059,104410.0,104400.0,0.143678]
[1738300581071,0.13363086,104410.0,104400.0,0.143678]
[1738300581208,0.13363086,104410.0,104400.0,0.27690557]
[1738300588974,0.13363086,104410.0,104400.0,0.36278455]
[1738300590103,0.13363086,104410.0,104400.0,0.35654455]
[1738300590321,0.12648217,104410.0,104400.0,0.36278455]
[1738300590540,0.12648217,104410.0,104400.0,0.38578455]
[1738300591177,0.12648217,104410.0,104400.0,0.37954455]
[1738300591392,0.12648217,104410.0,104400.0,0.38578455]
[1738300591825,0.00723086,104410.0,104400.0,0.76752855]
[1738300592507,0.00723086,104410.0,104400.0,0.86752855]
[1738300593333,0.00723086,104410.0,104400.0,0.48578455]
[1738300593763,0.00723086,104410.0,104400.0,1.49071055]
[1738300594776,0.00723086,104410.0,104400.0,1.37586755]
[1738300595798,0.00723086,104410.0,104400.0,0.95156755]
[1738300596019,0.08343086,104410.0,104400.0,0.66586355]
[1738300596221,0.08343086,104410.0,104400.0,0.64313454]
[1738300596601,0.08343086,104410.0,104400.0,0.55725556]
[1738300598520,0.08343086,104410.0,104400.0,0.40016156]
[1738300602234,0.08343086,104410.0,104400.0,0.55717956]
[1738300603105,0.12069544,104410.0,104400.0,0.30016156]
[1738300603223,0.12069544,104410.0,104400.0,0.38612235]
[1738300608712,0.12069544,104410.0,104400.0,0.35688235]
[1738300609020,0.12069544,104410.0,104400.0,0.21320435]
[1738300609021,0.31008367,104410.0,104400.0,0.21320435]
[1738300609467,0.26448134,104410.0,104400.0,0.36320435]
[1738300612990,0.26442804,104410.0,104400.0,0.36320435]
[1738300613236,0.26442804,104410.0,104400.0,0.21320435]
[1738300614221,0.26442804,104410.0,104400.0,0.18345994]
[1738300614394,0.74332804,104410.0,104400.0,0.18345994]
[1738300614800,0.74332804,104410.0,104400.0,0.09749915]
[1738300620368,0.7367913,104410.0,104400.0,0.09749915]
[1738300624272,0.7367913,104410.0,104400.0,0.00025599]
[1738300624520,0.7467913,104410.0,104400.0,0.00025599]
[1738300626171,0.08057594,104400.0,104380.0,0.95132712]
[1738300626378,0.55947594,104400.0,104390.0,0.09724316]
[1738300630471,0.70315394,104400.0,104390.0,0.09724316]
[1738300633392,0.70315394,104400.0,104390.0,0.09749915]
[1738300634790,0.48047594,104400.0,104390.0,0.09749915]
[1738300635031,0.48047594,104400.0,104390.0,0.24119015]
[1738300635261,0.62415394,104400.0,104390.0,0.24119015]
[1738300635461,0.48047594,104400.0,104390.0,0.24119015]
[1738300635666,0.62415394,104400.0,104390.0,0.24119015]
[1738300638342,0.62415394,104400.0,104390.0,0.27104715]
[1738300641287,0.622578,104400.0,104390.0,0.26947121]
[1738300645924,0.6226999,104400.0,104390.0,0.26947121]
[1738300646531,0.6226999,104400.0,104390.0,0.12578021]
[1738300646733,0.6997999,104400.0,104390.0,0.12578021]
[1738300657949,0.6997999,104400.0,104390.0,0.09592321]
[1738300658147,0.6997999,104400.0,104390.0,0.12583629]
[1738300658761,0.70949351,104400.0,104390.0,0.12583629]
[1738300662625,0.70949351,104400.0,104390.0,0.09592321]
[1738300663116,0.70949351,104400.0,104390.0,0.12583335]
[1738300664459,0.70949351,104400.0,104390.0,0.09592321]
[1738300664910,0.70949351,104400.0,104390.0,0.12583185]
[1738300667093,0.70949351,104400.0,104390.0,0.09592321]
[1738300668112,0.6997999,104400.0,104390.0,0.09592321]
[1738300668335,0.6997999,104400.0,104390.0,0.12582967]
[1738300673465,0.6226999,104400.0,104390.0,0.12582967]
[1738300678921,0.7038999,104400.0,104390.0,0.12582967]
[1738300681561,0.4790219,104400.0,104390.0,0.12582967]
[1738300681762,0.4790219,104400.0,104390.0,0.26952067]
[1738300682086,0.4790219,104400.0,104390.0,0.29252067]
[1738300682320,0.4790219,104400.0,104390.0,0.37002067]
[1738300683394,0.4790219,104400.0,104390.0,0.52002067]
[1738300683613,0.4790219,104400.0,104390.0,0.66692067]
[1738300684264,0.4790219,104400.0,104390.0,1.53532067]
[1738300684469,0.4790219,104400.0,104390.0,1.82124467]
[1738300685016,0.4790219,104400.0,104390.0,1.91675441]
[1738300685635,0.40720428,104400.0,104390.0,1.91675441]
[1738300686257,0.40720428,104400.0,104390.0,2.01675441]
[1738300686466,0.40440841,104400.0,104390.0,2.01675441]
[1738300687076,0.40440841,104400.0,104390.0,3.51675441]
[1738300687920,0.40440841,104400.0,104390.0,2.01675441]
[1738300688131,0.40440841,104400.0,104390.0,1.14835441]
[1738300688345,0.40440841,104400.0,104390.0,2.64835441]
[1738300688735,0.40167084,104400.0,104390.0,2.64835441]
[1738300689089,0.40167084,104400.0,104390.0,1.14835441]
[1738300689853,0.40167084,104400.0,104390.0,1.16744293]
[1738300690078,0.40167084,104400.0,104390.0,1.08148214]
[1738300690912,0.40167084,104400.0,104390.0,0.85687314]
[1738300691167,0.40167084,104400.0,104390.0,0.83172314]
[1738300693722,0.40167084,104400.0,104390.0,0.93172314]
[1738300694162,0.40167084,104400.0,104390.0,1.80012314]
[1738300695131,0.40167084,104400.0,104390.0,3.30012314]
[1738300695551,0.40167084,104400.0,104390.0,3.20012314]
[1738300695735,0.40167084,104400.0,104390.0,1.80012314]
[1738300697054,0.40167084,104400.0,104390.0,2.67900714]
[1738300697287,0.40167084,104400.0,104390.0,2.66697514]
[1738300700016,0.40167084,104400.0,104390.0,1.79857514]
[1738300707383,0.40167084,104400.0,104390.0,0.80179814]
[1738300707991,0.40167084,104400.0,104390.0,2.22104114]
[1738300708223,0.40167084,104400.0,104390.0,1.65798914]
[1738300711620,0.40167084,104400.0,104390.0,3.15798914]
[1738300714457,0.40167084,104400.0,104390.0,1.25342514]
[1738300714637,0.40167084,104400.0,104390.0,0.96491014]
[1738300715106,0.40158882,104400.0,104390.0,0.96491014]
[1738300716081,0.40158882,104400.0,104390.0,0.95867014]
[1738300716348,0.40158882,104400.0,104390.0,0.86570614]
[1738300716538,0.40158882,104400.0,104390.0,0.87194614]
[1738300716752,0.40158882,104400.0,104390.0,0.57115814]
[1738300716964,0.40158882,104400.0,104390.0,0.57739814]
[1738300717845,0.40158882,104400.0,104390.0,1.44579814]
[1738300719542,0.44888882,104400.0,104390.0,1.31655814]
[1738300719747,0.44888882,104400.0,104390.0,1.30370962]
[1738300719983,0.44888882,104400.0,104390.0,1.32670962]
[1738300720463,0.52778882,104400.0,104390.0,1.32046962]
[1738300720690,0.52778882,104400.0,104390.0,1.32670962]
[1738300721941,0.52778882,104400.0,104390.0,1.41249608]
[1738300725117,0.52778882,104400.0,104390.0,1.32670962]
[1738300727101,0.52778882,104400.0,104390.0,1.32046962]
[1738300727305,0.52778882,104400.0,104390.0,1.32670962]
[1738300728079,0.44888882,104400.0,104390.0,1.32670962]
[1738300729177,0.44888882,104400.0,104390.0,1.32046962]
[1738300729408,0.44888882,104400.0,104390.0,1.32670962]
[1738300729719,0.40158882,104400.0,104390.0,1.32670962]
[1738300729852,0.40158882,104400.0,104390.0,1.42670962]
[1738300732052,0.40258882,104400.0,104390.0,1.43570962]
[1738300741408,0.40258882,104400.0,104390.0,1.33570962]
[1738300741917,0.44768882,104400.0,104390.0,1.33570962]
[1738300742827,0.44768882,104400.0,104390.0,1.32946962]
[1738300743028,0.44768882,104400.0,104390.0,1.33570962]
[1738300744876,0.44768882,104400.0,104390.0,1.34070962]
[1738300748320,0.44768882,104400.0,104390.0,1.33446962]
[1738300748501,0.44768882,104400.0,104390.0,1.34070962]
[1738300757139,0.44768882,104400.0,104390.0,1.33446962]
[1738300757343,0.44768882,104400.0,104390.0,1.34070962]
[1738300762386,0.40258882,104400.0,104390.0,1.34070962]
[1738300763615,0.40258882,104400.0,104390.0,2.81824962]
[1738300763863,0.40258882,104400.0,104390.0,2.74311162]
[1738300764116,0.40258882,104400.0,104390.0,1.34070962]
[1738300764354,0.40258882,104400.0,104390.0,2.81950662]
[1738300764630,0.40258882,104400.0,104390.0,2.54980962]
[1738300764877,0.40258882,104400.0,104390.0,2.28789662]
[1738300765545,0.40258882,104400.0,104390.0,1.41949662]
[1738300766067,0.40258882,104400.0,104390.0,1.22697462]
[1738300768823,0.40258882,104400.0,104390.0,1.40367462]
[1738300770656,0.40258882,104400.0,104390.0,1.50367462]
[1738300773977,0.40258882,104400.0,104390.0,1.49867462]
[1738300774105,0.40258882,104400.0,104390.0,1.50367462]
[1738300774485,0.40158882,104400.0,104390.0,1.39471462]
[1738300774699,0.40258882,104400.0,104390.0,1.40371462]
[1738300774937,0.40258882,104400.0,104390.0,1.39471462]
[1738300775382,0.40358882,104400.0,104390.0,1.40371462]
[1738300775594,0.40358882,104400.0,104390.0,1.39871462]
[1738300775796,0.40358882,104400.0,104390.0,1.40271462]
[1738300777819,0.30780382,104400.0,104390.0,1.44811462]
[1738300778024,0.2814837,104400.0,104390.0,1.44811462]
[1738300778228,0.14176004,104400.0,104390.0,1.44811462]
[1738300779068,0.12260304,104400.0,104390.0,1.44811462]
[1738300779285,0.08428904,104400.0,104390.0,2.94811462]
[1738300780614,0.08428904,104400.0,104390.0,2.94183462]
[1738300780817,0.08428904,104400.0,104390.0,0.44834962]
[1738300781026,0.08428904,104400.0,104390.0,0.29834962]
[1738300781240,0.08428904,104400.0,104390.0,0.50333762]
[1738300781440,0.08428904,104400.0,104390.0,0.39834962]
[1738300781652,0.08428904,104400.0,104390.0,0.42134962]
[1738300781867,0.08428904,104400.0,104390.0,1.43611762]
[1738300782295,0.08428904,104400.0,104390.0,1.60911762]
[1738300783937,0.08428904,104400.0,104390.0,1.58439362]
[1738300795691,0.08428904,104400.0,104390.0,1.68051362]
[1738300796799,0.08428904,104400.0,104390.0,1.53586962]
[1738300797044,0.08428904,104400.0,104390.0,2.74631362]
[1738300798155,0.08428904,104400.0,104390.0,1.87791362]
[1738300800287,0.08428904,104400.0,104390.0,2.00621362]
[1738300802025,0.08428904,104400.0,104390.0,3.50621362]
[1738300802954,0.02681804,104400.0,104390.0,3.50621362]
[1738300803161,4e-08,104400.0,104390.0,3.50621362]
[1738300803380,4e-08,104400.0,104390.0,2.29576962]
[1738300803593,0.0001219,104420.0,104410.0,0.393664]
[1738300803845,0.0001219,104420.0,104410.0,1.83681221]
[1738300804685,0.0001219,104420.0,104410.0,1.66477921]
[1738300804894,0.0001219,104420.0,104410.0,1.66877921]
[1738300805538,0.0001219,104420.0,104410.0,1.39627421]
[1738300806242,0.0001219,104420.0,104410.0,1.40527421]
[1738300806914,0.0001219,104420.0,104410.0,1.43805836]
[1738300807809,0.0001219,104420.0,104410.0,2.41009436]
[1738300808639,0.0001219,104420.0,104410.0,2.37681636]
[1738300808846,0.0001219,104420.0,104410.0,2.32131636]
[1738300809097,0.0001219,104420.0,104410.0,2.29631636]
[1738300809311,0.0001219,104420.0,104410.0,2.30531636]
[1738300809988,0.0001219,104420.0,104410.0,2.30831636]
[1738300812381,0.0001219,104420.0,104410.0,2.27790336]
[1738300812506,0.0001219,104420.0,104410.0,2.29690129]
[1738300812935,0.0001219,104420.0,104410.0,2.24324929]
[1738300814286,0.0001219,104420.0,104410.0,2.32154929]
[1738300814510,0.0001219,104420.0,104410.0,2.37902929]
[1738300814726,0.0001219,104420.0,104410.0,2.32154929]
[1738300815341,0.0001219,104420.0,104410.0,3.82154929]
[1738300817088,0.0001219,104420.0,104410.0,3.74324929]
[1738300818387,0.0001219,104420.0,104410.0,3.79948929]
[1738300819230,0.0001219,104420.0,104410.0,3.60126429]
[1738300820727,0.0001219,104420.0,104410.0,1.26836929]
[1738300821170,0.0001219,104420.0,104410.0,2.89646929]
[1738300825459,9e-07,104420.0,104410.0,2.89646929]
[1738300825661,9e-07,104420.0,104410.0,2.33184429]
[1738300826158,9e-07,104420.0,104410.0,0.83184429]
[1738300826653,9e-07,104420.0,104410.0,2.31984429]
[1738300826907,9e-07,104420.0,104410.0,2.32284429]
[1738300827151,9e-07,104420.0,104410.0,2.33184429]
[1738300827403,0.0399227,104440.0,104430.0,0.393636]
[1738300827644,0.0399227,104440.0,104430.0,2.28394513]
[1738300827878,0.0399227,104440.0,104430.0,2.03141213]
[1738300828591,0.04040437,104440.0,104430.0,2.03141213]
[1738300828827,0.04040437,104440.0,104430.0,1.05646013]
[1738300829064,0.04040437,104440.0,104430.0,2.10023913]
[1738300829171,0.04040437,104440.0,104430.0,2.05747113]
[1738300830892,0.04040437,104440.0,104430.0,1.71439913]
[1738300831287,0.04052627,104440.0,104430.0,1.71439913]
[1738300831938,0.04052627,104440.0,104430.0,1.61439913]
[1738300832353,0.04052627,104440.0,104430.0,1.71439913]
[1738300832757,0.04052627,104440.0,104430.0,1.42791775]
[1738300834734,0.04052627,104440.0,104430.0,1.44732386]
[1738300837078,0.08752627,104440.0,104430.0,0.87962783]
[1738300837293,0.08752627,104440.0,104430.0,0.59058783]
[1738300837690,0.08752627,104440.0,104430.0,0.48434783]
[1738300838112,0.08752627,104440.0,104430.0,0.49058783]
[1738300838989,0.08752627,104440.0,104430.0,0.48434783]
[1738300839202,0.08752627,104440.0,104430.0,0.49062783]
[1738300842610,0.08752627,104440.0,104430.0,1.03002783]
[1738300843032,0.08752627,104440.0,104430.0,1.03028382]
[1738300843709,0.08752627,104440.0,104430.0,0.46160382]
[1738300843922,0.08752627,104440.0,104430.0,0.46784382]
[1738300844130,0.08752627,104440.0,104430.0,0.48460382]
[1738300844782,0.08752627,104440.0,104430.0,0.49084382]
[1738300845001,0.08752627,104440.0,104430.0,0.48460382]
[1738300850036,0.56629627,104440.0,104430.0,0.48460382]
[1738300857767,0.56629627,104440.0,104430.0,0.46545523]
[1738300872874,0.56546438,104440.0,104430.0,0.46545523]
[1738300874701,0.52637357,104440.0,104430.0,0.46545523]
[1738300874919,0.47937357,104440.0,104430.0,0.46545523]
[1738300883524,0.47937357,104440.0,104430.0,0.47169523]
[1738300890063,0.47937357,104440.0,104430.0,0.47151132]
[1738300892766,0.47937357,104440.0,104430.0,0.47147132]
[1738300894352,0.47937357,104440.0,104430.0,0.46523132]
[1738300894558,0.47937357,104440.0,104430.0,0.47147132]
[1738300900878,0.47937357,104440.0,104430.0,0.46523132]
[1738300901085,0.55607357,104440.0,104430.0,0.46523132]
[1738300901537,0.79378283,104440.0,104430.0,0.13940561]
[1738300901775,0.84028283,104440.0,104430.0,0.28304161]
[1738300902553,0.84028283,104440.0,104430.0,0.28004161]
[1738300902922,0.84028283,104440.0,104430.0,0.28304161]
[1738300903139,0.84028283,104440.0,104430.0,0.27404161]
[1738300903348,0.84028283,104440.0,104430.0,0.28304161]
[1738300905011,0.74619657,104440.0,104430.0,0.28304161]
[1738300906089,0.75619657,104440.0,104430.0,0.04216245]
[1738300906505,0.74619657,104440.0,104430.0,0.04216245]
[1738300906654,0.74619657,104440.0,104430.0,0.01225599]
[1738300907074,0.74619657,104440.0,104430.0,0.00325599]
[1738300907943,0.75619657,104440.0,104430.0,0.00925599]
[1738300908296,0.75619657,104440.0,104430.0,0.09814577]
[1738300910485,0.76619657,104440.0,104430.0,0.09814577]
[1738300910689,0.84713292,104440.0,104430.0,0.09814577]
[1738300910989,0.76619657,104440.0,104430.0,0.09814577]
[1738300911855,0.76619657,104440.0,104430.0,0.01225599]
[1738300912054,0.86355333,104440.0,104430.0,0.01225599]
[1738300913586,0.77619657,104440.0,104430.0,0.01225599]
[1738300921080,0.76619657,104440.0,104430.0,0.01225599]
[1738300923371,0.78524569,104440.0,104430.0,0.01225599]
[1738300925080,0.77619657,104440.0,104430.0,0.01225599]
[1738300925293,0.75619657,104440.0,104430.0,0.01225599]
[1738300925492,0.77619657,104440.0,104430.0,0.01225599]
[1738300925702,0.76619657,104440.0,104430.0,0.01225599]
[1738300926114,0.94448968,104440.0,104430.0,0.01225599]
[1738300926446,0.86355333,104440.0,104430.0,0.01225599]
[1738300927979,1.04173284,104440.0,104430.0,0.01225599]
[1738300936977,1.03285444,104440.0,104430.0,0.01225599]
[1738300937217,0.93549768,104440.0,104430.0,0.01225599]
[1738300937422,0.85456133,104440.0,104430.0,0.01225599]
[1738300938044,0.84987045,104440.0,104430.0,0.01225599]
[1738300939754,0.9308068,104440.0,104430.0,0.01225599]
[1738300940155,0.9691198,104440.0,104430.0,0.01225599]
[1738300940358,0.98252458,104440.0,104430.0,0.01225599]
[1738300940713,0.9691198,104440.0,104430.0,0.01225599]
[1738300941611,1.03005615,104440.0,104430.0,0.01225599]
[1738300942013,1.0991198,104440.0,104430.0,0.01225599]
[1738300942764,0.92094029,104440.0,104430.0,0.01225599]
[1738300943014,0.94094029,104440.0,104430.0,0.01225599]
[1738300943254,1.03829705,104440.0,104430.0,0.01225599]
[1738300943611,1.01829705,104440.0,104430.0,0.01225599]
[1738300944829,1.03829705,104440.0,104430.0,0.01225599]
[1738300945030,1.01829705,104440.0,104430.0,0.01225599]
[1738300947139,1.01841895,104440.0,104430.0,0.01225599]
[1738300950275,1.03841895,104440.0,104430.0,0.01225599]
[1738300950487,1.01841895,104440.0,104430.0,0.01225599]
[1738300953251,1.01841895,104440.0,104430.0,0.01221599]
[1738300953480,0.92106219,104440.0,104430.0,0.01221599]
[1738300955539,0.03,104430.0,104410.0,0.16519834]
[1738300955740,0.14365,104420.0,104410.0,0.16519834]
[1738300955968,0.60945429,104420.0,104410.0,0.16519834]
[1738300956164,0.60945429,104420.0,104410.0,0.02153434]
[1738300957121,0.60945429,104420.0,104410.0,0.03053434]
[1738300957899,0.60945429,104420.0,104410.0,0.03353434]
[1738300958310,0.60945429,104420.0,104410.0,0.03053434]
[1738300958522,0.60945429,104420.0,104410.0,0.03353434]
[1738300960107,0.60945429,104420.0,104410.0,0.012]
[1738300960423,0.71681105,104420.0,104410.0,0.012]
[1738300960629,0.61945429,104420.0,104410.0,0.012]
[1738300965609,0.61945429,104420.0,104410.0,0.04185748]
[1738300971686,0.61945429,104420.0,104410.0,0.18552148]
[1738300971915,0.61945429,104420.0,104410.0,0.04211347]
[1738300972112,0.61957619,104420.0,104410.0,0.04211347]
[1738300973101,0.46592619,104420.0,104410.0,0.36572063]
[1738300973299,0.46592619,104420.0,104410.0,0.41542063]
[1738300975543,0.46592619,104420.0,104410.0,0.50131041]
[1738300977910,0.4647461,104420.0,104410.0,0.50131041]
[1738300979831,0.4647461,104420.0,104410.0,0.36891041]
[1738300981229,0.6083961,104420.0,104410.0,0.12800325]
[1738300981846,0.6083961,104420.0,104410.0,0.09814577]
[1738300983242,0.6083961,104420.0,104410.0,0.12798]
[1738300986080,0.6083961,104420.0,104410.0,0.04209022]
[1738300989197,0.6083961,104420.0,104410.0,0.18575422]
[1738300989903,0.6083961,104420.0,104410.0,0.04209022]
[1738300990081,0.1098,104430.0,104410.0,0.01225599]
[1738300990283,0.14484732,104420.0,104410.0,0.03140458]
[1738300990487,0.62370732,104420.0,104410.0,0.03140458]
[1738300990707,0.62251,104420.0,104410.0,0.03140458]
[1738300990912,0.6404568,104420.0,104410.0,0.16606858]
[1738300991374,0.6404568,104420.0,104410.0,0.17506858]
[1738300991783,0.63972432,104420.0,104410.0,0.17506858]
[1738300991983,0.63972432,104420.0,104410.0,0.17206858]
[1738300992209,0.63972432,104420.0,104410.0,0.17506858]
[1738300992433,0.62177752,104420.0,104410.0,0.17506858]
[1738300992639,0.62177752,104420.0,104410.0,0.17206858]
[1738300992964,0.62177752,104420.0,104410.0,0.16606858]
[1738300993376,0.62277752,104420.0,104410.0,0.17506858]
[1738300993575,0.62177752,104420.0,104410.0,0.16606858]
[1738300993972,0.62277752,104420.0,104410.0,0.17506858]
[1738300995463,0.62175995,104420.0,104410.0,0.17506858]
[1738300998323,0.4799819,104420.0,104410.0,0.17506858]
[1738301002490,0.6236319,104420.0,104410.0,0.17506858]
[1738301003512,0.6236319,104420.0,104410.0,0.03140458]
[1738301005242,0.6236319,104420.0,104410.0,0.17506858]
[1738301005825,0.6236319,104420.0,104410.0,0.03140458]
[1738301007359,0.6236319,104420.0,104410.0,0.17506858]
[1738301008597,0.6236319,104420.0,104410.0,0.03140458]
[1738301008807,0.6236319,104420.0,104410.0,0.17506858]
[1738301009422,0.6236319,104420.0,104410.0,0.03140458]
[1738301009693,0.7013319,104420.0,104410.0,0.03140458]
[1738301010193,0.85668866,104420.0,104410.0,0.01225599]
[1738301010438,0.94762501,104420.0,104410.0,0.01225599]
[1738301010838,0.86668866,104420.0,104410.0,0.01225599]
[1738301013453,0.94762501,104420.0,104410.0,0.01225599]
[1738301013965,0.94762501,104420.0,104410.0,0.01221599]
[1738301014298,0.95721826,104420.0,104410.0,0.01221599]
[1738301014442,1.05446142,104420.0,104410.0,0.01221599]
[1738301016047,1.07322893,104420.0,104410.0,0.01221599]
[1738301019968,1.07322893,104420.0,104410.0,0.00921599]
[1738301020319,1.07222893,104420.0,104410.0,0.00021599]
[1738301020540,1.07222893,104420.0,104410.0,0.00121599]
[1738301020733,1.07222893,104420.0,104410.0,0.00621599]
[1738301023842,1.22222893,104420.0,104410.0,0.00621599]
[1738301024047,1.20222893,104420.0,104410.0,0.00621599]
[1738301025039,1.28316528,104420.0,104410.0,0.00521599]
[1738301025523,1.28316528,104420.0,104410.0,0.00021599]
[1738301026994,1.28316528,104420.0,104410.0,0.00221599]
[1738301035521,1.23316528,104420.0,104410.0,0.00221599]
[1738301037068,1.13580852,104420.0,104410.0,0.00221599]
[1738301037261,1.05487217,104420.0,104410.0,0.00221599]
[1738301039899,1.05360323,104420.0,104410.0,0.00221599]
[1738301040795,1.0452669,104420.0,104410.0,0.00221599]
[1738301041912,0.90663055,104420.0,104410.0,0.00221599]
[1738301042121,0.85863055,104420.0,104410.0,0.00221599]
[1738301042477,0.86863055,104420.0,104410.0,0.00221599]
[1738301042682,0.85863055,104420.0,104410.0,0.00221599]
[1738301043378,0.83863055,104420.0,104410.0,0.00221599]
[1738301044015,0.93598731,104420.0,104410.0,0.00221599]
[1738301044217,1.01692366,104420.0,104410.0,0.00221599]
[1738301060375,0.9195669,104420.0,104410.0,0.00221599]
[1738301075131,0.9195669,104420.0,104410.0,0.00217599]
[1738301078921,1.07680325,104420.0,104410.0,0.00217599]
[1738301080323,0.9958669,104420.0,104410.0,0.00217599]
[1738301081241,0.9195669,104420.0,104410.0,0.00217599]
[1738301081834,1.01692366,104420.0,104410.0,0.00217599]
[1738301088309,1.09352366,104420.0,104410.0,0.00217599]
[1738301088522,1.17446001,104420.0,104410.0,0.00217599]
[1738301093429,1.17079328,104420.0,104410.0,0.00217599]
[1738301096391,1.08985693,104420.0,104410.0,0.09829599]
[1738301096576,1.17079328,104420.0,104410.0,0.09829599]
[1738301103062,1.08985693,104420.0,104410.0,0.09829599]
[1738301108991,1.10985693,104420.0,104410.0,0.09829599]
[1738301109200,1.19079328,104420.0,104410.0,0.09829599]
[1738301110057,1.10985693,104420.0,104410.0,0.09829599]
[1738301110509,1.19079328,104420.0,104410.0,0.09829599]
[1738301112382,1.10985693,104420.0,104410.0,0.09829599]
[1738301123023,1.03325693,104420.0,104410.0,0.09829599]
[1738301126882,0.83496382,104420.0,104410.0,0.09829599]
[1738301127058,0.4257099,104420.0,104410.0,0.22589599]
[1738301127264,0.4157099,104420.0,104410.0,0.36955999]
[1738301130898,0.4157099,104420.0,104410.0,0.46680315]
[1738301131928,0.4157099,104420.0,104410.0,0.46580315]
[1738301132142,0.4157099,104420.0,104410.0,0.47080315]